fUST/lending_fUST_20260118
["ID","MTS","AMOUNT","RATE_DAILY","PERIOD"]
[402400822,1768672256002,-500.0,0.00016986,3]
[402400824,1768672256011,-500.0,0.00016986,3]
[402400825,1768672256021,-11730.58,0.00016986,3]
[402400827,1768672256029,-500.0,0.00016986,3]
[402400828,1768672256038,-500.0,0.00016986,3]
[402400830,1768672256047,-500.0,0.00016986,3]
[402400831,1768672256056,-500.0,0.00016986,3]
[402400833,1768672256065,-500.0,0.00016986,3]
[402400835,1768672256075,-500.0,0.00016986,3]
[402400836,1768672256085,-500.0,0.00016986,3]
[402400838,1768672256094,-553.24,0.00016986,3]
[402400840,1768672256103,-661.23,0.00016986,3]
[402400841,1768672256112,-500.0,0.00016986,3]
[402400843,1768672256121,-1280.11,0.00016986,3]
[402400844,1768672256130,-635.13,0.00016986,3]
[402400863,1768672256397,-500.0,0.00016986,3]
[402400865,1768672256413,-500.0,0.00016986,3]
[402400866,1768672256422,-500.0,0.00016986,3]
[402400868,1768672256432,-1044.17,0.00016986,3]
[402400870,1768672256441,-909.68,0.00016986,3]
[402400871,1768672256451,-500.0,0.00016986,3]
[402400873,1768672256460,-500.0,0.00016986,3]
[402400875,1768672256469,-500.0,0.00016986,3]
[402400876,1768672256478,-730.73,0.00016986,3]
[402400878,1768672256488,-500.0,0.00016986,3]
[402400880,1768672256497,-500.0,0.00016986,3]
[402400881,1768672256507,-790.59,0.00016986,3]
[402400883,1768672256516,-500.0,0.00016986,3]
[402400884,1768672256525,-500.0,0.00016986,3]
[402400885,1768672256534,-500.0,0.00016986,3]
[402400886,1768672256543,-511.42,0.00016986,3]
[402400887,1768672256553,-2112.69,0.00016986,3]
[402400888,1768672256562,-500.0,0.00016986,3]
[402400889,1768672256572,-535.75,0.00016986,3]
[402400890,1768672256581,-500.0,0.00016986,3]
[402400891,1768672256591,-1257.86,0.00016986,3]
[402400892,1768672256600,-500.0,0.00016986,3]
[402400893,1768672256609,-500.0,0.00016986,3]
[402400894,1768672256619,-564.16,0.00016986,3]
[402400895,1768672256628,-500.0,0.00016986,3]
[402400896,1768672256637,-536.65897098,0.00016986,3]
[402400897,1768672256647,-500.0,0.00016986,3]
[402400898,1768672256656,-500.0,0.00016986,3]
[402400899,1768672256666,-793.71,0.00016986,3]
[402400900,1768672256675,-1060.23,0.00016986,3]
[402400901,1768672256685,-206.13170951,0.00016986,3]
[402400902,1768672256694,-753.83,0.00016986,3]
[402400903,1768672256703,-500.0,0.00016986,3]
[402400904,1768672256713,-1178.18,0.00016986,3]
[402400905,1768672256722,-500.0,0.00016986,3]
[402400906,1768672256731,-621.29598782,0.00016986,3]
[402400907,1768672256740,-819.72,0.00016986,3]
[402400908,1768672256749,-500.0,0.00016986,3]
[402400909,1768672256759,-500.0,0.00016986,3]
[402400910,1768672256768,-500.0,0.00016986,3]
[402400911,1768672256778,-500.0,0.00016986,3]
[402400912,1768672256787,-641.91,0.00016986,3]
[402400913,1768672256796,-500.0,0.00016986,3]
[402400914,1768672256805,-500.0,0.00016986,3]
[402400915,1768672256814,-990.33,0.00016986,3]
[402400916,1768672256823,-500.0,0.00016986,3]
[402400917,1768672256832,-500.0,0.00016986,3]
[402400918,1768672256842,-500.0,0.00016986,3]
[402400919,1768672256852,-500.0,0.00016986,3]
[402400920,1768672256861,-500.0,0.00016986,3]
[402400921,1768672256871,-500.0,0.00016986,3]
[402400922,1768672256880,-500.0,0.00016986,3]
[402400924,1768672256890,-500.0,0.00016986,3]
[402400925,1768672256899,-1220.19,0.00016986,3]
[402400926,1768672256908,-1328.95,0.00016986,3]
[402400927,1768672256917,-500.0,0.00016986,3]
[402400929,1768672256927,-500.0,0.00016986,3]
[402400930,1768672256936,-525.66,0.00016986,3]
[402400932,1768672256945,-858.37,0.00016986,3]
[402400934,1768672256955,-500.0,0.00016986,3]
[402400936,1768672256965,-500.0,0.00016986,3]
[402400939,1768672256974,-500.0,0.00016986,3]
[402400940,1768672256984,-500.0,0.00016986,3]
[402400943,1768672256993,-900.31,0.00016986,3]
[402400945,1768672257002,-1642.54,0.00016986,3]
[402400947,1768672257012,-764.57,0.00016986,3]
[402400949,1768672257021,-500.0,0.00016986,3]
[402400951,1768672257031,-548.54,0.00016986,3]
[402400953,1768672257041,-660.54,0.00016986,3]
[402400955,1768672257050,-500.0,0.00016986,3]
[402400957,1768672257060,-1141.74,0.00016986,3]
[402400959,1768672257068,-1017.41,0.00016986,3]
[402400961,1768672257077,-500.0,0.00016986,3]
[402400963,1768672257087,-500.0,0.00016986,3]
[402400965,1768672257096,-1019.73,0.00016986,3]
[402400967,1768672257106,-500.0,0.00016986,3]
[402400969,1768672257116,-500.0,0.00016986,3]
[402400971,1768672257125,-1637.47,0.00016986,3]
[402400973,1768672257134,-915.65,0.00016986,3]
[402400975,1768672257147,-1280.75,0.00016986,3]
[402400977,1768672257158,-500.0,0.00016986,3]
[402400979,1768672257167,-500.0,0.00016986,3]
[402400981,1768672257176,-702.07,0.00016986,3]
[402400983,1768672257186,-500.0,0.00016986,3]
[402400985,1768672257195,-500.0,0.00016986,3]
[402400987,1768672257205,-500.0,0.00016986,3]
[402400989,1768672257214,-605.46,0.00016986,3]
[402400991,1768672257224,-1184.2,0.00016986,3]
[402400993,1768672257233,-500.0,0.00016986,3]
[402400995,1768672257243,-500.0,0.00016986,3]
[402400997,1768672257255,-500.0,0.00016986,3]
[402400999,1768672257265,-933.56,0.00016986,3]
[402401001,1768672257274,-1078.02,0.00016986,3]
[402401003,1768672257288,-500.0,0.00016986,3]
[402401005,1768672257297,-500.0,0.00016986,3]
[402401007,1768672257307,-500.0,0.00016986,3]
[402401009,1768672257318,-2148.56,0.00016986,3]
[402401011,1768672257328,-583.23,0.00016986,3]
[402401013,1768672257337,-500.0,0.00016986,3]
[402401015,1768672257346,-500.0,0.00016986,3]
[402401017,1768672257357,-500.0,0.00016986,3]
[402401020,1768672257368,-729.58,0.00016986,3]
[402401021,1768672257377,-500.0,0.00016986,3]
[402401023,1768672257387,-500.0,0.00016986,2]
[402401025,1768672257397,-1609.54,0.00016986,3]
[402401028,1768672257406,-2656.16,0.00016986,3]
[402401030,1768672257416,-1160.4,0.00016986,3]
[402401031,1768672257425,-1132.67,0.00016986,3]
[402401034,1768672257435,-500.0,0.00016986,3]
[402401035,1768672257444,-500.0,0.00016986,3]
[402401038,1768672257453,-795.11,0.00016986,3]
[402401040,1768672257463,-156.77330136,0.00016986,2]
[402401041,1768672257473,-500.0,0.00016986,3]
[402401043,1768672257484,-500.0,0.00016986,3]
[402401045,1768672257493,-1232.18,0.00016986,3]
[402401047,1768672257502,-500.0,0.00016986,3]
[402401049,1768672257511,-815.62,0.00016986,3]
[402401051,1768672257521,-500.0,0.00016986,3]
[402401053,1768672257531,-500.0,0.00016986,3]
[402401055,1768672257540,-500.0,0.00016986,3]
[402401057,1768672257549,-500.0,0.00016986,3]
[402401059,1768672257559,-1090.41,0.00016986,3]
[402401061,1768672257568,-500.0,0.00016986,3]
[402401063,1768672257578,-654.93,0.00016986,3]
[402401065,1768672257587,-500.0,0.00016986,3]
[402401067,1768672257596,-763.75,0.00016986,3]
[402401069,1768672257606,-1185.44,0.00016986,3]
[402401071,1768672257615,-500.0,0.00016986,2]
[402401073,1768672257624,-274.90835023,0.00017,2]
[402401075,1768672257633,-200.0,0.00017,2]
[402401077,1768672257642,-200.0,0.00017,2]
[402401079,1768672257651,-200.0,0.00017,2]
[402401081,1768672257660,-200.0,0.00017,2]
[402401083,1768672257669,-200.0,0.00017,2]
[402401085,1768672257679,-200.0,0.00017,2]
[402401087,1768672257688,-200.0,0.00017,2]
[402401089,1768672257698,-200.0,0.00017,2]
[402401092,1768672257708,-209.50263211,0.00017,2]
[402401094,1768672257718,-173.5,0.00017036,2]
[402401096,1768672257728,-348.0,0.00017039,2]
[402401098,1768672257737,-348.0,0.00017039,2]
[402401100,1768672257747,-7037.28417483,0.00017066,2]
[402401102,1768672257756,-478.75725327,0.00017066,2]
[402401104,1768672257765,-2312.83697232,0.00017066,2]
[402401106,1768672257774,-778.0,0.000172,2]
[402401108,1768672257783,-500.0,0.0001726,3]
[402401110,1768672257794,-500.0,0.0001726,3]
[402401112,1768672257803,-500.0,0.0001726,3]
[402401114,1768672257812,-500.0,0.0001726,3]
[402401116,1768672257821,-1033.84,0.0001726,3]
[402401118,1768672257830,-1070.01,0.0001726,3]
[402401120,1768672257840,-500.0,0.0001726,3]
[402401122,1768672257849,-500.0,0.0001726,3]
[402401124,1768672257859,-500.0,0.0001726,3]
[402401126,1768672257868,-500.0,0.0001726,3]
[402401128,1768672257877,-796.7,0.0001726,3]
[402401130,1768672257885,-583.59407383,0.0001726,3]
[402401132,1768672257895,-618.49,0.0001726,3]
[402401134,1768672257904,-500.0,0.0001726,3]
[402401136,1768672257913,-198.0244908,0.0001726,3]
[402401138,1768672257922,-1270.86,0.0001726,3]
[402401140,1768672257931,-568.80325365,0.0001726,3]
[402401142,1768672257940,-500.0,0.0001726,3]
[402401144,1768672257950,-500.0,0.0001726,3]
[402401146,1768672257960,-500.0,0.0001726,3]
[402401148,1768672257969,-813.64,0.0001726,3]
[402401150,1768672257978,-500.0,0.0001726,3]
[402401152,1768672257987,-500.0,0.0001726,3]
[402401154,1768672257997,-500.0,0.0001726,3]
[402401156,1768672258007,-561.64,0.0001726,3]
[402401158,1768672258016,-815.39,0.0001726,3]
[402401160,1768672258025,-500.0,0.0001726,3]
[402401162,1768672258035,-1185.99,0.0001726,3]
[402401164,1768672258044,-500.0,0.0001726,3]
[402401166,1768672258053,-567.48,0.0001726,3]
[402401168,1768672258063,-580.38717394,0.0001726,3]
[402401170,1768672258072,-500.0,0.0001726,3]
[402401172,1768672258082,-500.0,0.0001726,3]
[402401174,1768672258091,-500.0,0.0001726,3]
[402401176,1768672258101,-500.0,0.0001726,3]
[402401179,1768672258166,-649.06,0.0001726,3]
[402401181,1768672258176,-539.97212861,0.0001726,3]
[402401183,1768672258185,-500.0,0.0001726,3]
[402401184,1768672258195,-565.36,0.0001726,3]
[402401186,1768672258205,-500.0,0.0001726,3]
[402401188,1768672258214,-500.0,0.0001726,3]
[402401190,1768672258225,-844.87,0.0001726,3]
[402401192,1768672258234,-1175.77,0.0001726,3]
[402401194,1768672258243,-500.0,0.0001726,3]
[402401196,1768672258252,-500.0,0.0001726,3]
[402401199,1768672258265,-227.29636774,0.0001726,3]
[402401200,1768672258274,-500.0,0.0001726,3]
[402401202,1768672258288,-500.0,0.0001726,3]
[402401204,1768672258297,-1169.86,0.0001726,3]
[402401206,1768672258307,-500.0,0.0001726,3]
[402401209,1768672258317,-602.7,0.0001726,3]
[402401210,1768672258327,-500.0,0.0001726,3]
[402401212,1768672258336,-500.0,0.0001726,3]
[402401214,1768672258345,-500.0,0.0001726,3]
[402401216,1768672258355,-500.0,0.0001726,3]
[402401219,1768672258367,-500.0,0.0001726,3]
[402401221,1768672258376,-500.0,0.0001726,3]
[402401223,1768672258386,-500.0,0.0001726,3]
[402401225,1768672258395,-500.0,0.0001726,3]
[402401226,1768672258404,-605.61,0.0001726,3]
[402401228,1768672258412,-500.0,0.0001726,3]
[402401230,1768672258420,-514.68,0.0001726,3]
[402401232,1768672258429,-500.0,0.0001726,3]
[402401234,1768672258438,-500.0,0.0001726,3]
[402401236,1768672258447,-637.45,0.0001726,3]
[402401238,1768672258456,-595.27,0.0001726,3]
[402401241,1768672258467,-622.37,0.0001726,3]
[402401243,1768672258476,-510.29,0.0001726,3]
[402401245,1768672258485,-570.20304143,0.0001726,3]
[402401247,1768672258493,-500.0,0.0001726,3]
[402401249,1768672258502,-747.18,0.0001726,3]
[402401251,1768672258511,-500.0,0.0001726,3]
[402401253,1768672258520,-500.0,0.0001726,3]
[402401255,1768672258529,-187.97057605,0.0001726,3]
[402401257,1768672258538,-947.56,0.0001726,3]
[402401259,1768672258547,-756.15,0.0001726,3]
[402401261,1768672258557,-500.0,0.0001726,3]
[402401263,1768672258566,-534.17,0.0001726,3]
[402401265,1768672258575,-751.4,0.0001726,3]
[402401267,1768672258584,-500.0,0.0001726,3]
[402401269,1768672258593,-832.93,0.0001726,3]
[402401271,1768672258601,-228.06287454,0.0001726,3]
[402401273,1768672258611,-537.8,0.0001726,3]
[402401275,1768672258620,-500.0,0.0001726,3]
[402401277,1768672258629,-774.1,0.0001726,3]
[402401279,1768672258638,-500.0,0.0001726,3]
[402401281,1768672258648,-1081.35,0.0001726,3]
[402401282,1768672258658,-500.0,0.0001726,3]
[402401285,1768672258667,-500.0,0.0001726,3]
[402401287,1768672258676,-500.0,0.0001726,3]
[402401289,1768672258685,-500.0,0.0001726,3]
[402401291,1768672258695,-864.76,0.0001726,3]
[402401293,1768672258704,-500.0,0.0001726,3]
[402401295,1768672258714,-1077.83,0.0001726,3]
[402401297,1768672258723,-500.0,0.0001726,3]
[402401299,1768672258732,-500.0,0.0001726,3]
[402401301,1768672258741,-988.32,0.0001726,3]
[402401303,1768672258750,-905.85,0.0001726,3]
[402401311,1768672258820,-1000.0,0.0001726,2]
[402401313,1768672258830,-500.0,0.0001726,3]
[402401315,1768672258840,-500.0,0.0001726,3]
[402401317,1768672258849,-500.0,0.0001726,3]
[402401319,1768672258858,-1338.2,0.0001726,3]
[402401321,1768672258867,-557.94,0.0001726,3]
[402401323,1768672258878,-500.0,0.0001726,3]
[402401325,1768672258888,-500.0,0.0001726,3]
[402401327,1768672258897,-290.99920964,0.0001726,3]
[402401329,1768672258907,-500.0,0.0001726,3]
[402401331,1768672258916,-500.0,0.0001726,3]
[402401333,1768672258925,-954.03,0.0001726,3]
[402401335,1768672258935,-557.44022238,0.0001726,3]
[402401337,1768672258945,-500.0,0.0001726,3]
[402401339,1768672258954,-500.0,0.0001726,3]
[402401341,1768672258963,-569.16,0.0001726,3]
[402401343,1768672258973,-500.0,0.0001726,3]
[402401345,1768672258982,-500.0,0.0001726,3]
[402401347,1768672258992,-500.0,0.0001726,3]
[402401349,1768672259002,-500.0,0.0001726,3]
[402401351,1768672259016,-500.0,0.0001726,3]
[402401353,1768672259026,-642.64,0.0001726,3]
[402401355,1768672259044,-652.9,0.0001726,3]
[402401357,1768672259053,-500.0,0.0001726,3]
[402401359,1768672259063,-500.0,0.0001726,3]
[402401361,1768672259072,-653.37,0.0001726,3]
[402401363,1768672259081,-1166.14,0.0001726,3]
[402401365,1768672259090,-500.0,0.0001726,3]
[402401367,1768672259100,-500.0,0.0001726,3]
[402401369,1768672259109,-500.0,0.0001726,3]
[402401371,1768672259119,-500.0,0.0001726,3]
[402401373,1768672259128,-500.0,0.0001726,3]
[402401375,1768672259137,-500.0,0.0001726,3]
[402401377,1768672259146,-587.61,0.0001726,3]
[402401379,1768672259154,-600.53,0.0001726,3]
[402401381,1768672259163,-885.65,0.0001726,3]
[402401383,1768672259172,-151.0,0.0001726,2]
[402401385,1768672259181,-746.94,0.0001726,3]
[402401387,1768672259190,-151.0,0.0001726,2]
[402401389,1768672259200,-151.0,0.0001726,2]
[402401391,1768672259211,-151.0,0.0001726,2]
[402401393,1768672259220,-1428.8,0.0001726,3]
[402401395,1768672259229,-500.0,0.0001726,3]
[402401397,1768672259238,-602.7,0.0001726,3]
[402401399,1768672259247,-500.0,0.0001726,3]
[402401401,1768672259256,-500.0,0.0001726,3]
[402401403,1768672259264,-500.0,0.0001726,3]
[402401405,1768672259273,-505.27,0.0001726,3]
[402401407,1768672259287,-1280.76,0.0001726,3]
[402401409,1768672259296,-500.0,0.0001726,3]
[402401410,1768672259305,-1200.0,0.0001726,2]
[402401413,1768672259316,-633.08,0.0001726,3]
[402401415,1768672259327,-500.0,0.0001726,3]
[402401417,1768672259336,-580.9568791,0.0001726,3]
[402401419,1768672259345,-735.44,0.0001726,3]
[402401421,1768672259355,-500.0,0.0001726,3]
[402401422,1768672259364,-500.0,0.0001726,3]
[402401424,1768672259373,-536.05,0.0001726,3]
[402401426,1768672259382,-500.0,0.0001726,3]
[402401428,1768672259392,-500.0,0.0001726,3]
[402401430,1768672259401,-500.0,0.0001726,3]
[402401432,1768672259410,-500.0,0.0001726,3]
[402401434,1768672259420,-742.56,0.0001726,3]
[402401436,1768672259429,-500.0,0.0001726,3]
[402401438,1768672259438,-1411.96,0.0001726,3]
[402401440,1768672259447,-811.82,0.0001726,3]
[402401442,1768672259456,-997.47,0.0001726,3]
[402401444,1768672259465,-500.0,0.0001726,3]
[402401446,1768672259474,-1358.94,0.0001726,3]
[402401448,1768672259483,-500.0,0.0001726,3]
[402401450,1768672259492,-683.61,0.0001726,3]
[402401452,1768672259501,-500.0,0.0001726,3]
[402401454,1768672259511,-500.0,0.0001726,3]
[402401456,1768672259520,-500.0,0.0001726,3]
[402401458,1768672259530,-500.0,0.0001726,3]
[402401460,1768672259539,-705.55,0.0001726,3]
[402401462,1768672259548,-716.4,0.0001726,3]
[402401464,1768672259557,-500.0,0.0001726,3]
[402401466,1768672259566,-500.0,0.0001726,3]
[402401467,1768672259574,-729.97,0.0001726,3]
[402401469,1768672259583,-500.0,0.0001726,3]
[402401471,1768672259593,-520.99,0.0001726,3]
[402401473,1768672259602,-1532.82,0.0001726,3]
[402401475,1768672259611,-587.24,0.0001726,3]
[402401477,1768672259620,-500.0,0.0001726,3]
[402401479,1768672259628,-500.0,0.0001726,3]
[402401481,1768672259637,-711.45,0.0001726,3]
[402401483,1768672259645,-762.94,0.0001726,3]
[402401485,1768672259654,-885.65,0.0001726,3]
[402401487,1768672259663,-1015.5,0.0001726,3]
[402401489,1768672259673,-500.0,0.0001726,3]
[402401491,1768672259681,-500.0,0.0001726,3]
[402401493,1768672259690,-218.42017606,0.0001726,3]
[402401495,1768672259699,-904.58,0.0001726,3]
[402401497,1768672259708,-1533.96,0.0001726,3]
[402401499,1768672259717,-776.21,0.0001726,3]
[402401501,1768672259726,-500.0,0.0001726,3]
[402401503,1768672259735,-500.0,0.0001726,3]
[402401505,1768672259744,-845.11,0.0001726,3]
[402401507,1768672259754,-500.0,0.0001726,3]
[402401509,1768672259763,-881.13,0.0001726,3]
[402401510,1768672259772,-500.0,0.0001726,3]
[402401512,1768672259781,-500.0,0.0001726,3]
[402401514,1768672259789,-500.0,0.0001726,3]
[402401516,1768672259798,-500.0,0.0001726,3]
[402401518,1768672259807,-500.0,0.0001726,3]
[402401520,1768672259816,-500.0,0.0001726,3]
[402401522,1768672259825,-810.57,0.0001726,3]
[402401524,1768672259834,-1412.17,0.0001726,3]
[402401526,1768672259843,-802.89,0.0001726,3]
[402401528,1768672259853,-500.0,0.0001726,3]
[402401530,1768672259862,-622.86303291,0.0001726,3]
[402401532,1768672259871,-500.0,0.0001726,3]
[402401534,1768672259880,-500.0,0.0001726,3]
[402401536,1768672259889,-686.71,0.0001726,3]
[402401538,1768672259899,-727.6,0.0001726,3]
[402401540,1768672259908,-500.0,0.0001726,3]
[402401542,1768672259917,-592.71890736,0.0001726,3]
[402401544,1768672259925,-500.0,0.0001726,3]
[402401546,1768672259934,-540.93,0.0001726,3]
[402401548,1768672259943,-500.0,0.0001726,3]
[402401550,1768672259952,-500.0,0.0001726,3]
[402401552,1768672259962,-1000.0,0.0001726,2]
[402401554,1768672259972,-500.0,0.0001726,3]
[402401556,1768672259981,-500.0,0.0001726,3]
[402401558,1768672259991,-500.0,0.0001726,3]
[402401560,1768672260000,-500.0,0.0001726,3]
[402401562,1768672260009,-716.95,0.0001726,3]
[402401564,1768672260019,-500.0,0.0001726,3]
[402401566,1768672260028,-500.0,0.0001726,3]
[402401568,1768672260037,-727.17,0.0001726,3]
[402401570,1768672260046,-1357.3,0.0001726,3]
[402401572,1768672260055,-500.0,0.0001726,3]
[402401574,1768672260064,-500.0,0.0001726,3]
[402401576,1768672260073,-500.0,0.0001726,3]
[402401578,1768672260083,-1149.14,0.0001726,3]
[402401580,1768672260092,-500.0,0.0001726,3]
[402401582,1768672260102,-607.11,0.0001726,3]
[402401583,1768672260110,-500.0,0.0001726,3]
[402401584,1768672260119,-500.0,0.0001726,3]
[402401585,1768672260128,-808.06,0.0001726,3]
[402401586,1768672260136,-772.15,0.0001726,3]
[402401587,1768672260145,-819.52,0.0001726,3]
[402401588,1768672260154,-500.0,0.0001726,3]
[402401589,1768672260163,-500.0,0.0001726,3]
[402401590,1768672260171,-500.0,0.0001726,3]
[402401591,1768672260181,-500.0,0.0001726,3]
[402401592,1768672260190,-500.0,0.0001726,3]
[402401593,1768672260200,-1028.09,0.0001726,3]
[402401594,1768672260210,-500.0,0.0001726,3]
[402401595,1768672260219,-500.0,0.0001726,3]
[402401596,1768672260228,-837.9,0.0001726,3]
[402401597,1768672260237,-500.0,0.0001726,3]
[402401598,1768672260246,-1136.48,0.0001726,3]
[402401599,1768672260256,-500.0,0.0001726,3]
[402401600,1768672260265,-500.0,0.0001726,3]
[402401601,1768672260275,-557.15103403,0.0001726,3]
[402401602,1768672260288,-599.08,0.0001726,3]
[402401603,1768672260297,-1593.44,0.0001726,3]
[402401604,1768672260305,-500.0,0.0001726,3]
[402401605,1768672260314,-500.0,0.0001726,3]
[402401606,1768672260325,-500.0,0.0001726,3]
[402401607,1768672260333,-500.0,0.0001726,3]
[402401608,1768672260342,-500.0,0.0001726,3]
[402401609,1768672260351,-500.0,0.0001726,3]
[402401610,1768672260361,-500.0,0.0001726,3]
[402401612,1768672260368,-500.0,0.0001726,3]
[402401613,1768672260377,-1254.11,0.0001726,3]
[402401615,1768672260387,-500.0,0.0001726,3]
[402401617,1768672260397,-500.0,0.0001726,3]
[402401619,1768672260411,-500.0,0.0001726,3]
[402401621,1768672260420,-500.0,0.0001726,3]
[402401623,1768672260435,-500.0,0.0001726,3]
[402401625,1768672260445,-1755.19,0.0001726,3]
[402401627,1768672260454,-631.38,0.0001726,3]
[402401629,1768672260464,-514.21,0.0001726,3]
[402401631,1768672260473,-1107.65,0.0001726,3]
[402401633,1768672260482,-500.0,0.0001726,3]
[402401635,1768672260491,-500.0,0.0001726,3]
[402401637,1768672260500,-500.0,0.0001726,3]
[402401639,1768672260509,-1185.83,0.0001726,3]
[402401641,1768672260518,-1000.17,0.0001726,3]
[402401643,1768672260527,-500.0,0.0001726,3]
[402401645,1768672260537,-500.0,0.0001726,3]
[402401647,1768672260546,-500.0,0.0001726,3]
[402401649,1768672260555,-1353.46,0.0001726,3]
[402401651,1768672260564,-205.70334836,0.0001726,3]
[402401653,1768672260573,-282.14565143,0.0001726,3]
[402401655,1768672260582,-597.8010965,0.0001726,3]
[402401657,1768672260591,-500.0,0.0001726,3]
[402401659,1768672260600,-500.0,0.0001726,3]
[402401661,1768672260609,-526.8,0.0001726,3]
[402401663,1768672260618,-1772.05,0.0001726,3]
[402401665,1768672260628,-638.11,0.0001726,3]
[402401667,1768672260637,-500.0,0.0001726,3]
[402401669,1768672260646,-1230.93,0.0001726,3]
[402401671,1768672260655,-500.0,0.0001726,3]
[402401673,1768672260664,-526.01,0.0001726,3]
[402401675,1768672260672,-579.07,0.0001726,3]
[402401677,1768672260681,-500.0,0.0001726,3]
[402401679,1768672260690,-1439.94,0.0001726,3]
[402401680,1768672260699,-1401.58,0.0001726,3]
[402401682,1768672260708,-470.6383794,0.0001726,3]
[402401684,1768672260717,-500.0,0.0001726,3]
[402401686,1768672260725,-500.0,0.0001726,3]
[402401688,1768672260734,-500.0,0.0001726,3]
[402401690,1768672260743,-500.0,0.0001726,3]
[402401692,1768672260752,-1620.39,0.0001726,3]
[402401694,1768672260760,-500.0,0.0001726,3]
[402401696,1768672260770,-500.0,0.0001726,3]
[402401698,1768672260779,-500.0,0.0001726,3]
[402401700,1768672260787,-500.0,0.0001726,3]
[402401702,1768672260795,-500.0,0.0001726,3]
[402401704,1768672260804,-500.0,0.0001726,3]
[402401706,1768672260813,-655.94,0.0001726,3]
[402401708,1768672260822,-755.72,0.0001726,3]
[402401710,1768672260831,-500.0,0.0001726,3]
[402401712,1768672260841,-500.0,0.0001726,3]
[402401714,1768672260850,-6173.67,0.0001726,3]
[402401716,1768672260860,-500.0,0.0001726,3]
[402401718,1768672260869,-677.04,0.0001726,3]
[402401720,1768672260878,-500.0,0.0001726,3]
[402401722,1768672260887,-500.0,0.0001726,3]
[402401724,1768672260896,-1349.74,0.0001726,3]
[402401726,1768672260905,-500.0,0.0001726,3]
[402401728,1768672260914,-500.0,0.0001726,3]
[402401730,1768672260922,-715.28,0.0001726,3]
[402401731,1768672260931,-785.23,0.0001726,3]
[402401733,1768672260940,-500.0,0.0001726,3]
[402401735,1768672260949,-500.0,0.0001726,3]
[402401737,1768672260958,-500.0,0.0001726,3]
[402401739,1768672260968,-1079.91,0.0001726,3]
[402401741,1768672260977,-1224.26,0.0001726,3]
[402401743,1768672260986,-1116.8,0.0001726,3]
[402401745,1768672260995,-788.6,0.0001726,3]
[402401747,1768672261004,-618.2,0.0001726,3]
[402401749,1768672261012,-500.0,0.0001726,3]
[402401751,1768672261024,-500.0,0.0001726,3]
[402401753,1768672261033,-500.0,0.0001726,3]
[402401755,1768672261042,-963.95,0.0001726,3]
[402401757,1768672261052,-500.0,0.0001726,3]
[402401759,1768672261062,-525.19722982,0.0001726,3]